bitfinex/quotes_SOLUSD_20250902
["timestamp","ask_amount","ask_price","bid_price","bid_amount"]
[1756797158677,39.71,203.68,203.64,4.91062659]
[1756797158973,39.71,203.68,203.64,8.38733034]
[1756797159386,39.71,203.68,203.64,4.91062659]
[1756797159897,0.71,203.67,203.64,4.91062659]
[1756797160095,39.0,203.66,203.64,4.91062659]
[1756797161708,39.0,203.66,203.64,8.38733034]
[1756797162595,39.0,203.66,203.65,3.47670375]
[1756797164397,38.98,203.67,203.65,3.47670375]
[1756797164586,39.69,203.67,203.65,3.47670375]
[1756797164789,38.98,203.67,203.65,3.47670375]
[1756797165595,39.69,203.67,203.64,4.91062659]
[1756797165802,39.69,203.67,203.66,4.91014435]
[1756797166300,38.98,203.67,203.66,4.91014435]
[1756797168196,0.71,203.72,203.66,8.5368481]
[1756797168398,38.98,203.71,203.69,3.47670375]
[1756797168600,13.59559401,203.74,203.66,19.81702535]
[1756797168601,0.71,203.7,203.68,3.47670375]
[1756797168790,38.98,203.71,203.68,3.47670375]
[1756797168989,38.98,203.71,203.69,14.75688]
[1756797168990,39.69,203.71,203.69,14.75688]
[1756797169383,0.71,203.7,203.69,14.75688]
[1756797169999,38.98,203.71,203.7,4.90918016]
[1756797170304,39.69,203.71,203.7,4.90918016]
[1756797173603,0.06,203.73,203.7,7.1338155]
[1756797173901,38.96,203.71,203.7,21.8892445]
[1756797174101,39.73,203.73,203.7,21.8892445]
[1756797174402,39.73,203.73,203.71,2.22463534]
[1756797174607,39.02,203.73,203.71,2.22463534]
[1756797174801,0.71,203.72,203.7,21.8892445]
[1756797175000,0.71,203.72,203.7,19.66460916]
[1756797175586,39.67,203.72,203.7,19.66460916]
[1756797177016,0.71,203.71,203.7,19.66460916]
[1756797177220,39.67,203.72,203.7,19.66460916]
[1756797177790,0.71,203.71,203.7,19.66460916]
[1756797179498,13.59559401,203.7,203.66,0.03]
[1756797179689,38.96,203.69,203.66,4.94009239]
[1756797179893,0.71,203.68,203.66,4.94009239]
[1756797180090,0.71,203.67,203.66,4.94009239]
[1756797181314,0.71,203.67,203.66,0.03]
[1756797181493,14.30559401,203.67,203.66,0.03]
[1756797182832,16.53022935,203.67,203.66,0.03]
[1756797184023,39.67,203.67,203.66,0.03]
[1756797189034,53.26559401,203.67,203.66,0.03]
[1756797189214,55.49022935,203.67,203.66,0.03]
[1756797189604,63.68154044,203.67,203.66,0.03]
[1756797190440,53.26559401,203.67,203.66,0.03]
[1756797190606,55.49022935,203.67,203.66,0.03]
[1756797191032,63.68116774,203.67,203.66,0.03]
[1756797191414,60.40013262,203.67,203.66,0.03]
[1756797192107,65.64829268,203.67,203.66,0.03]
[1756797194542,60.71838941,203.67,203.66,0.03]
[1756797194703,21.77838941,203.67,203.66,0.03]
[1756797195206,60.71838941,203.67,203.66,0.03]
[1756797195407,65.62829268,203.67,203.66,0.03]
[1756797195815,41.82022935,203.64,203.63,0.03]
[1756797196139,84.03993441,203.64,203.63,0.03]
[1756797196308,81.48022935,203.64,203.63,0.03]
[1756797196508,88.35969894,203.64,203.63,0.03]
[1756797197147,49.41969894,203.64,203.63,0.03]
[1756797197336,88.35969894,203.64,203.63,0.03]
[1756797198545,91.63633658,203.64,203.63,0.03]
[1756797198915,52.69633658,203.64,203.63,0.03]
[1756797199129,91.63633658,203.64,203.63,0.03]
[1756797199733,45.56107465,203.64,203.63,0.03]
[1756797199931,79.25559401,203.64,203.63,0.03]
[1756797200446,78.53559401,203.64,203.63,0.03]
[1756797200644,79.25559401,203.64,203.63,0.03]
[1756797200857,40.31559401,203.64,203.63,0.03]
[1756797201040,78.53559401,203.64,203.63,0.03]
[1756797201243,79.25559401,203.64,203.63,0.03]
[1756797201941,40.31559401,203.64,203.63,0.03]
[1756797202129,79.25559401,203.64,203.63,0.03]
[1756797202329,78.53559401,203.64,203.63,0.03]
[1756797203544,13.59559401,203.64,203.63,0.03]
[1756797203850,52.53559401,203.64,203.63,0.03]
[1756797204440,53.25559401,203.64,203.63,0.03]
[1756797204850,14.31559401,203.64,203.63,0.03]
[1756797205030,53.25559401,203.64,203.63,0.03]
[1756797206542,55.48022935,203.64,203.63,0.03]
[1756797207748,52.51559401,203.64,203.63,0.03]
[1756797207940,53.23559401,203.64,203.63,0.03]
[1756797208138,14.31559401,203.64,203.63,0.03]
[1756797208540,52.51559401,203.64,203.63,0.03]
[1756797209134,55.46022935,203.64,203.63,0.03]
[1756797210446,53.23559401,203.64,203.63,0.03]
[1756797210648,55.46022935,203.64,203.63,0.03]
[1756797211039,60.37085594,203.64,203.63,0.03]
[1756797211355,62.33969894,203.64,203.63,0.03]
[1756797212159,57.42907235,203.64,203.63,0.03]
[1756797213259,55.20443701,203.64,203.63,0.03]
[1756797213646,57.42907235,203.64,203.63,0.03]
[1756797214237,55.20443701,203.64,203.63,0.03]
[1756797214442,57.42907235,203.64,203.63,0.03]
[1756797215078,60.37085594,203.64,203.63,0.03]
[1756797215582,60.37085594,203.64,203.61,0.03]
[1756797215583,39.59559401,203.62,203.61,0.03]
[1756797215747,80.74022935,203.62,203.61,0.03]
[1756797216069,81.46022935,203.62,203.61,0.03]
[1756797216447,86.37133827,203.62,203.61,0.03]
[1756797217269,92.96060621,203.62,203.61,0.03]
[1756797217447,96.23299718,203.62,203.61,0.03]
[1756797219076,105.13153854,203.62,203.61,0.03]
[1756797220351,39.59559401,203.58,203.57,0.03]
[1756797220569,80.72022935,203.58,203.57,0.03]
[1756797220768,86.56445135,203.58,203.57,0.03]
[1756797221150,91.47652522,203.58,203.57,0.03]
[1756797221558,89.25188988,203.58,203.57,0.03]
[1756797221760,91.47652522,203.58,203.57,0.03]
[1756797222270,98.79355581,203.58,203.57,0.03]
[1756797224463,13.59559401,203.53,203.5,0.55]
[1756797224981,13.59559401,203.51,203.5,0.55]
[1756797225149,54.72022935,203.51,203.5,0.55]
[1756797225346,52.49559401,203.51,203.5,0.76]
[1756797225565,52.49559401,203.51,203.5,0.55]
[1756797225761,54.72022935,203.51,203.5,0.55]
[1756797227772,13.59559401,203.51,203.5,0.55]
[1756797227976,52.49559401,203.51,203.5,0.55]
[1756797228180,57.41029801,203.51,203.5,0.55]
[1756797228687,52.49559401,203.51,203.5,0.55]
[1756797228883,13.59559401,203.51,203.5,0.58]
[1756797229676,52.49559401,203.51,203.5,0.58]
[1756797230579,54.72022935,203.51,203.5,0.58]
[1756797231370,53.21559401,203.51,203.5,0.58]
[1756797231671,55.44022935,203.51,203.5,0.58]
[1756797231983,52.49559401,203.51,203.5,0.58]
[1756797232683,13.59559401,203.51,203.5,0.58]
[1756797232890,52.49559401,203.51,203.5,0.58]
[1756797233360,13.59559401,203.51,203.5,0.58]
[1756797233558,38.9,203.51,203.5,0.58]
[1756797233759,38.9,203.51,203.5,5.49398497]
[1756797234080,13.59559401,203.52,203.5,5.49398497]
[1756797234282,38.9,203.51,203.5,9.18638962]
[1756797234785,52.49559401,203.51,203.5,0.58]
[1756797234966,38.9,203.51,203.5,5.49400491]
[1756797235172,38.9,203.51,203.5,5.70400491]
[1756797235382,13.59559401,203.52,203.5,8.97640956]
[1756797235571,38.9,203.51,203.5,8.97640956]
[1756797235768,38.9,203.51,203.5,5.49400491]
[1756797237465,13.59559401,203.52,203.5,5.49400491]
[1756797237686,133.8,203.53,203.51,3.48240465]
[1756797237860,38.9,203.52,203.51,3.48240465]
[1756797238191,13.59559401,203.57,203.51,3.69240465]
[1756797238365,13.59559401,203.55,203.52,3.48240465]
[1756797238695,38.9,203.54,203.52,3.48240465]
[1756797239884,38.9,203.54,203.53,4.91328059]
[1756797240062,133.8,203.59,203.53,4.91328059]
[1756797240261,133.8,203.59,203.55,3.48240465]
[1756797240569,38.9,203.58,203.55,3.48240465]
[1756797241785,133.8,203.59,203.56,4.91255649]
[1756797241981,38.9,203.58,203.56,4.91255649]
[1756797242878,38.9,203.58,203.53,0.21]
[1756797243083,17.79799866,203.57,203.52,4.91346502]
[1756797243264,13.59559401,203.55,203.52,4.91346502]
[1756797243466,38.9,203.54,203.52,4.91346502]
[1756797244090,39.62,203.54,203.5,31.49384244]
[1756797244295,39.62,203.54,203.5,5.49384244]
[1756797244471,39.62,203.54,203.5,8.97624709]
[1756797245586,38.9,203.54,203.5,8.97624709]
[1756797245981,38.9,203.54,203.52,4.91352201]
[1756797247085,39.55,203.54,203.52,4.91352201]
[1756797247681,13.65559401,203.58,203.53,3.69240465]
[1756797247978,38.88,203.57,203.55,8.39503005]
[1756797248479,39.53,203.57,203.53,8.39545666]
[1756797248988,0.65,203.56,203.53,8.39545666]
[1756797249187,38.88,203.55,203.53,4.91305201]
[1756797249394,38.88,203.55,203.53,8.39545666]
[1756797249810,38.88,203.55,203.51,17.19777166]
[1756797250008,3.48240465,203.57,203.52,26.0]
[1756797250203,17.07799866,203.54,203.5,0.58]
[1756797250395,38.88,203.53,203.5,0.58]
[1756797250601,38.88,203.52,203.5,0.58]
[1756797252018,38.88,203.52,203.5,8.97633377]
[1756797252592,39.53,203.52,203.5,5.49392912]
[1756797255007,39.53,203.52,203.5,0.58]
[1756797255403,39.53,203.52,203.5,5.49398133]
[1756797255712,38.88,203.52,203.5,5.49398133]
[1756797255894,38.88,203.52,203.5,8.97638598]
[1756797256094,4.9123247,203.57,203.5,8.97638598]
[1756797256095,38.88,203.53,203.51,3.69240465]
[1756797256415,38.88,203.54,203.52,3.48240465]
[1756797256598,38.88,203.54,203.5,5.49398133]
[1756797257118,38.88,203.54,203.53,8.39568524]
[1756797257492,39.53,203.54,203.53,8.39568524]
[1756797257921,39.53,203.54,203.53,4.91328059]
[1756797258223,39.53,203.54,203.51,3.48240465]
[1756797258398,39.53,203.54,203.5,0.58]
[1756797258596,39.53,203.54,203.51,3.48240465]
[1756797259407,39.53,203.54,203.52,4.91352201]
[1756797259613,38.88,203.54,203.52,4.91352201]
[1756797259820,0.65,203.53,203.52,4.91352201]
[1756797261526,0.65,203.53,203.5,31.49379925]
[1756797261703,0.65,203.53,203.51,3.48240465]
[1756797261909,0.65,203.53,203.5,31.49379925]
[1756797262111,0.65,203.53,203.51,3.48240465]
[1756797262633,0.65,203.53,203.5,31.49379925]
[1756797262922,38.88,203.54,203.5,31.49379925]
[1756797263237,39.53,203.54,203.51,3.48240465]
[1756797263422,0.65,203.53,203.51,8.39596285]
[1756797263724,38.88,203.54,203.51,3.48240465]
[1756797263725,0.65,203.52,203.51,3.48240465]
[1756797264126,0.65,203.53,203.5,31.49395862]
[1756797264313,0.65,203.52,203.5,31.49395862]
[1756797264833,0.65,203.52,203.51,3.48240465]
[1756797265004,38.88,203.54,203.5,5.49395862]
[1756797265204,0.65,203.52,203.51,3.48240465]
[1756797265800,38.88,203.54,203.51,3.48240465]
[1756797265996,0.65,203.53,203.51,3.48240465]
[1756797266423,0.65,203.53,203.51,8.39612177]
[1756797267331,0.65,203.53,203.51,4.91371712]
[1756797267525,0.65,203.53,203.51,8.39612177]
[1756797267832,0.65,203.53,203.5,8.9763615]
[1756797269306,0.65,203.53,203.51,8.39608404]
[1756797269708,0.06,203.57,203.52,3.48240465]
[1756797270035,0.06,203.57,203.51,4.91367939]
[1756797270036,0.65,203.56,203.51,4.91367939]
[1756797270236,38.92,203.57,203.55,3.48240465]
[1756797270717,39.57,203.57,203.54,3.48240465]
[1756797270923,0.65,203.56,203.51,5.12367939]
[1756797271127,0.65,203.56,203.54,3.48240465]
[1756797272114,0.65,203.56,203.53,4.91314376]
[1756797272434,0.65,203.55,203.51,8.39593584]
[1756797272753,13.59559401,203.56,203.51,4.91353119]
[1756797272754,0.65,203.54,203.51,4.91353119]
[1756797273047,13.59559401,203.56,203.51,8.39593584]
[1756797273220,0.65,203.54,203.51,4.91353119]
[1756797273555,0.65,203.53,203.51,8.39593584]
[1756797273849,0.65,203.52,203.51,4.91353119]
[1756797274039,38.86,203.54,203.51,4.91353119]
[1756797274234,0.65,203.53,203.51,4.91353119]
[1756797274435,0.65,203.52,203.51,4.91353119]
[1756797274937,39.51,203.54,203.51,4.91353119]
[1756797275238,39.51,203.54,203.5,5.49396096]
[1756797275239,0.65,203.53,203.5,5.49396096]
[1756797275437,0.65,203.53,203.5,8.97636561]
[1756797275640,38.86,203.54,203.5,8.97636561]
[1756797275950,0.67,203.53,203.5,8.97636561]
[1756797276119,0.67,203.52,203.5,0.58]
[1756797276328,0.67,203.51,203.5,0.58]
[1756797277341,0.67,203.53,203.5,0.58]
[1756797277532,39.53,203.53,203.5,4.06240465]
[1756797277841,39.53,203.53,203.5,8.97632513]
[1756797278013,0.67,203.52,203.5,8.97632513]
[1756797278936,38.86,203.53,203.5,8.97632513]
[1756797279118,0.67,203.52,203.5,8.97632513]
[1756797279314,0.67,203.52,203.5,5.49392048]
[1756797279515,0.67,203.52,203.5,8.97632513]
[1756797281740,38.86,203.53,203.5,8.97632513]
[1756797282042,0.67,203.51,203.5,5.49392048]
[1756797282736,39.53,203.53,203.5,5.49392048]
[1756797282934,0.67,203.52,203.5,5.49392048]
[1756797283457,38.86,203.53,203.5,5.49392048]
[1756797283742,0.67,203.52,203.5,5.49392048]
[1756797283937,3.48240465,203.54,203.5,0.58]
[1756797284140,3.96064329,203.53,203.5,5.49389698]
[1756797284336,13.59559401,203.56,203.51,3.48240465]
[1756797284540,39.51,203.55,203.51,3.48240465]
[1756797284845,0.67,203.54,203.5,8.97630163]
[1756797285044,0.67,203.53,203.5,8.97630163]
[1756797285217,0.67,203.53,203.5,5.49389698]
[1756797285422,0.67,203.53,203.5,8.97630163]
[1756797286121,39.51,203.53,203.5,8.97630163]
[1756797287149,0.67,203.53,203.5,8.97630163]
[1756797287542,39.51,203.53,203.5,8.97630163]
[1756797288060,0.67,203.53,203.5,8.97630163]
[1756797288233,39.51,203.53,203.5,8.97630163]
[1756797290444,0.67,203.52,203.5,8.97630163]
[1756797291734,38.84,203.53,203.5,8.97630163]
[1756797291948,39.51,203.53,203.5,8.97630163]
[1756797292236,0.67,203.52,203.5,8.97630163]
[1756797292440,39.51,203.53,203.5,8.97630163]
[1756797293343,0.67,203.56,203.52,8.39592666]
[1756797293544,0.06,203.57,203.52,4.91352201]
[1756797293545,38.84,203.53,203.52,4.91352201]
[1756797293845,38.84,203.55,203.52,4.91352201]
[1756797294056,39.51,203.55,203.52,4.91352201]
[1756797294727,39.51,203.55,203.53,3.48240465]
[1756797295060,39.51,203.55,203.52,4.91352201]
[1756797295358,0.67,203.54,203.52,8.39592666]
[1756797295531,0.67,203.54,203.52,7.14160624]
[1756797295731,38.84,203.55,203.52,4.91352201]
[1756797296033,0.67,203.54,203.52,7.14160624]
[1756797296447,0.67,203.53,203.52,7.14160624]
[1756797296829,0.67,203.53,203.52,4.91352201]
[1756797297247,0.67,203.53,203.5,7.72206167]
[1756797297453,0.67,203.52,203.5,5.49397744]
[1756797298336,38.84,203.55,203.5,5.49397744]
[1756797298540,0.67,203.52,203.5,5.49397744]
[1756797298859,0.67,203.51,203.5,5.49397744]
[1756797299751,0.67,203.52,203.5,5.49397744]
[1756797301237,0.67,203.52,203.5,0.58]
[1756797301748,0.67,203.51,203.5,0.58]
[1756797302241,0.67,203.52,203.5,0.58]
[1756797302859,0.67,203.51,203.5,0.58]
[1756797303056,0.67,203.53,203.5,0.58]
[1756797303749,2.22808423,203.54,203.5,0.58]
[1756797303945,38.84,203.55,203.5,2.80808423]
[1756797304145,38.82,203.54,203.53,2.22808423]
[1756797304651,39.49,203.54,203.5,5.49397613]
[1756797304851,39.49,203.54,203.53,2.22808423]
[1756797305156,0.67,203.54,203.53,2.22808423]
[1756797305356,0.67,203.54,203.51,4.91376345]
[1756797305559,0.7,203.53,203.52,2.22808423]
[1756797307049,0.7,203.53,203.51,4.91376345]
[1756797307365,0.7,203.52,203.51,7.14184768]
[1756797308034,39.52,203.54,203.51,4.91376345]
[1756797308236,15.88367824,203.57,203.52,2.22808423]
[1756797308438,42.81576076,203.56,203.52,2.22808423]
[1756797308644,39.52,203.55,203.52,2.22808423]
[1756797308862,0.7,203.54,203.52,2.22808423]
[1756797309061,0.06,203.57,203.53,2.22808423]
[1756797309242,38.82,203.55,203.54,4.9130392]
[1756797309436,39.52,203.55,203.54,4.9130392]
[1756797309838,0.7,203.55,203.54,4.9130392]
[1756797310243,0.7,203.55,203.53,7.14131154]
[1756797310941,0.7,203.55,203.53,4.91322731]
[1756797311143,0.7,203.55,203.53,7.14131154]
[1756797311657,0.7,203.54,203.53,4.91322731]
[1756797312061,0.7,203.55,203.53,4.91322731]
[1756797313153,39.5,203.55,203.53,4.91322731]
[1756797313561,38.8,203.55,203.53,4.91322731]
[1756797313979,39.5,203.55,203.53,4.91322731]
[1756797314570,0.7,203.54,203.53,4.91322731]
[1756797315643,0.06,203.57,203.53,7.14131154]
[1756797315847,39.56,203.57,203.55,2.22808423]
[1756797316251,0.06,203.57,203.55,2.22808423]
[1756797317054,0.76,203.57,203.55,2.22808423]
[1756797317351,0.7,203.56,203.53,30.91322731]
[1756797317548,0.7,203.55,203.53,30.91322731]
[1756797317755,2.92808423,203.54,203.51,4.91354693]
[1756797317960,0.7,203.53,203.51,4.91354693]
[1756797319660,0.7,203.53,203.51,7.14163116]
[1756797319867,41.02808423,203.56,203.52,2.22808423]
[1756797319868,0.7,203.56,203.52,2.22808423]
[1756797320048,38.8,203.55,203.52,2.22808423]
[1756797320368,0.06,203.57,203.53,2.22808423]
[1756797320565,39.5,203.56,203.53,2.25808423]
[1756797320758,0.7,203.55,203.53,2.25808423]
[1756797321274,0.7,203.54,203.53,2.25808423]
[1756797321454,0.7,203.54,203.53,0.03]
[1756797322453,38.8,203.56,203.53,0.03]
[1756797322653,38.78,203.56,203.54,2.22808423]
[1756797322851,38.78,203.56,203.55,2.22808423]
[1756797323252,0.06,203.57,203.55,2.22808423]
[1756797323549,0.76,203.57,203.55,2.22808423]
[1756797323750,0.76,203.57,203.56,2.22808423]
[1756797323751,0.06,203.57,203.56,2.22808423]
[1756797324180,0.76,203.57,203.56,7.14064072]
[1756797325696,0.76,203.57,203.56,4.91255649]
[1756797326784,0.06,203.57,203.56,7.14064072]
[1756797327974,0.76,203.57,203.56,7.14064072]
[1756797328376,0.06,203.57,203.56,7.14064072]
[1756797330302,0.06,203.57,203.56,7.35064072]
[1756797330681,0.06,203.57,203.56,7.14064072]
[1756797331203,0.76,203.57,203.56,4.91255649]
[1756797331380,0.76,203.57,203.56,7.14064072]
[1756797331579,0.06,203.57,203.56,7.14064072]
[1756797332992,0.06,203.57,203.56,7.35064072]
[1756797333287,0.06,203.57,203.56,7.14064072]
[1756797333491,0.06,203.57,203.56,9.10909672]
[1756797333899,0.06,203.57,203.56,7.14064072]
[1756797336894,0.06,203.57,203.56,9.10909572]
[1756797337095,0.78,203.57,203.56,1.968455]
[1756797337297,0.78,203.57,203.53,0.03]
[1756797337503,3.00808423,203.57,203.53,4.94327096]
[1756797337722,0.72,203.56,203.53,4.94327096]
[1756797337901,0.72,203.56,203.53,7.17135519]
[1756797338097,0.06,203.57,203.53,7.17135519]
[1756797338307,0.72,203.55,203.53,7.17135519]
[1756797339396,0.72,203.55,203.54,7.14112343]
[1756797339915,0.06,203.57,203.54,7.14112343]
[1756797340227,0.06,203.57,203.56,2.22808423]
[1756797341320,0.06,203.57,203.55,1.968359]
[1756797341506,0.06,203.57,203.56,2.22808423]
[1756797341711,0.06,203.57,203.56,7.14064072]
[1756797342136,0.06,203.58,203.56,33.84189636]
[1756797342415,0.06,203.58,203.57,2.22808423]
[1756797343917,0.06,203.58,203.57,7.1403994]
[1756797345815,0.06,203.58,203.57,4.91231517]
[1756797346117,0.78,203.58,203.57,7.1403994]
[1756797346326,0.06,203.58,203.57,7.1403994]
[1756797347823,0.06,203.58,203.57,9.1087584]
[1756797348214,0.78,203.58,203.53,12.31280709]
[1756797348428,0.72,203.57,203.56,2.22808423]
[1756797348638,0.06,203.58,203.55,1.968552]
[1756797348920,0.72,203.57,203.53,2.25808423]
[1756797349108,0.72,203.56,203.53,4.22683023]
[1756797349309,0.72,203.55,203.54,2.22808423]
[1756797349911,0.72,203.55,203.54,7.14112343]
[1756797350627,0.72,203.55,203.53,1.998746]
[1756797350805,0.72,203.54,203.53,4.22683023]
[1756797351125,0.72,203.54,203.53,2.25808423]
[1756797351509,0.72,203.54,203.53,7.17132376]
[1756797351900,0.72,203.54,203.53,0.03]
[1756797352135,0.72,203.54,203.53,2.25808423]
[1756797352625,0.72,203.54,203.53,7.17136482]
[1756797353237,0.06,203.58,203.53,7.17136482]
[1756797353442,0.72,203.57,203.56,2.22808423]
[1756797354231,0.72,203.57,203.55,7.14081915]
[1756797354432,0.72,203.56,203.55,7.14081915]
[1756797354613,0.06,203.58,203.55,7.14081915]
[1756797354811,0.06,203.58,203.57,2.22808423]
[1756797355217,0.06,203.58,203.55,4.91273492]
[1756797355611,0.06,203.58,203.57,3.47955033]
[1756797356034,0.06,203.58,203.57,8.3918655]
[1756797357238,0.06,203.58,203.57,5.12231517]
[1756797357414,0.06,203.58,203.57,8.6018655]
[1756797357616,0.06,203.58,203.57,8.6318655]
[1756797358621,0.06,203.58,203.57,10.6001265]
[1756797360307,0.06,203.6,203.59,26.0]
[1756797360535,1e-08,203.61,203.6,32.95910066]
[1756797361044,1e-08,203.61,203.6,33.16910066]
[1756797361635,1e-08,203.61,203.6,40.04846901]
[1756797362118,0.06,203.66,203.6,52.32744739]
[1756797362334,0.06,203.66,203.65,3.47955033]
[1756797362934,0.06,203.66,203.65,5.44694033]
[1756797363337,0.06,203.66,203.65,10.35732579]
[1756797364440,0.06,203.66,203.65,10.56732579]
[1756797366436,0.06,203.66,203.65,7.08777546]
[1756797366637,1e-08,203.66,203.65,10.56732579]
[1756797367735,1e-08,203.66,203.65,10.35732579]
[1756797367928,1e-08,203.66,203.65,10.56732579]
[1756797368583,1e-08,203.66,203.65,10.35732579]
[1756797370398,1e-08,203.66,203.65,6.87777546]
[1756797370609,1e-08,203.66,203.65,10.35732579]
[1756797376487,1e-08,203.66,203.65,10.56732579]
[1756797377204,0.06,203.7,203.68,26.0]
[1756797377503,0.06,203.7,203.69,3.47955033]
[1756797378400,0.06,203.7,203.69,5.44645733]
[1756797378606,0.06,203.7,203.69,10.3558785]
[1756797379399,0.06,203.7,203.69,13.83542883]
[1756797380188,1e-08,203.7,203.69,13.83542883]
[1756797380592,0.68000001,203.7,203.69,13.83542883]
[1756797380910,1e-08,203.7,203.69,13.83542883]
[1756797384695,1e-08,203.7,203.69,52.47542883]
[1756797388496,1e-08,203.7,203.69,52.68542883]
[1756797388705,1e-08,203.7,203.69,52.47542883]
[1756797388904,1e-08,203.71,203.69,52.68542883]
[1756797389207,1e-08,203.71,203.7,7.45001867]
[1756797389814,1e-08,203.71,203.7,46.07001867]
[1756797390116,1e-08,203.71,203.7,48.03673267]
[1756797390895,1e-08,203.71,203.7,52.94591283]
[1756797395416,0.06,203.75,203.73,26.0]
[1756797395619,0.06,203.75,203.74,3.47955033]
[1756797396218,0.06,203.75,203.74,8.38776668]
[1756797396806,0.06,203.75,203.74,10.35438368]
[1756797397519,0.78,203.75,203.74,10.35438368]
[1756797401597,0.78,203.75,203.74,6.87483335]
[1756797401795,0.78,203.75,203.74,10.35438368]
[1756797402220,0.78,203.75,203.74,6.87483335]
[1756797402439,0.78,203.75,203.73,4.90842403]
[1756797402742,0.72,203.74,203.73,8.38797436]
[1756797403300,0.72,203.74,203.73,4.90842403]
[1756797403506,0.72,203.74,203.73,8.38797436]
[1756797404109,0.72,203.74,203.73,10.35488136]
[1756797405609,0.78,203.75,203.73,10.35488136]
[1756797405829,0.78,203.75,203.74,3.47955033]
[1756797406133,0.06,203.75,203.74,3.47955033]
[1756797406322,0.06,203.75,203.74,5.44626333]
[1756797406720,0.78,203.75,203.74,5.44626333]
[1756797407630,0.78,203.75,203.74,10.35447968]
[1756797408233,0.06,203.75,203.74,10.35447968]
[1756797408531,0.78,203.75,203.74,10.35447968]
[1756797409824,0.78,203.75,203.74,6.87492935]
[1756797410022,0.78,203.75,203.74,10.35447968]
[1756797410650,0.78,203.75,203.74,6.87492935]
[1756797410816,0.78,203.75,203.74,10.35447968]
[1756797412730,0.06,203.75,203.74,11.07447968]
[1756797413324,0.06,203.75,203.74,10.35447968]
[1756797413526,0.78,203.75,203.74,10.35447968]
[1756797415215,0.06,203.75,203.74,10.35447968]
[1756797415416,0.06,203.75,203.74,5.44626333]
[1756797416236,0.06,203.75,203.74,10.35447968]
[1756797417526,0.78,203.75,203.74,9.09730686]
[1756797418041,0.06,203.75,203.74,9.09730686]
[1756797422141,1e-08,203.75,203.74,9.81730686]
[1756797423721,1e-08,203.76,203.74,9.81730686]
[1756797425250,1e-08,203.76,203.75,35.81658297]
[1756797427330,0.66000001,203.76,203.75,35.09658297]
[1756797428047,1e-08,203.76,203.75,35.09658297]
[1756797429857,1e-08,203.76,203.75,35.80658297]
[1756797431034,1e-08,203.76,203.75,35.09658297]
[1756797431442,1e-08,203.76,203.75,73.61658297]
[1756797432557,1e-08,203.76,203.75,71.39420546]
[1756797432759,1e-08,203.76,203.75,73.61658297]
[1756797434340,1e-08,203.76,203.75,74.32658297]
[1756797434565,0.06,203.78,203.75,74.32658297]
[1756797434855,0.06,203.78,203.77,2.22237751]
[1756797435251,0.72,203.78,203.77,2.22237751]
[1756797435447,0.72,203.78,203.77,4.18860751]
[1756797436660,0.72,203.78,203.77,6.87372374]
[1756797436840,0.72,203.78,203.77,9.09610125]
[1756797438158,0.06,203.78,203.77,9.09610125]
[1756797438359,0.06,203.78,203.77,6.87372374]
[1756797438360,0.72,203.78,203.77,6.87372374]
[1756797438567,0.72,203.78,203.77,9.09610125]
[1756797443166,0.72,203.78,203.77,6.87372374]
[1756797443367,0.72,203.78,203.77,4.90749374]
[1756797444378,0.72,203.78,203.77,7.12987125]
[1756797444760,0.72,203.78,203.77,9.09639125]
[1756797445276,0.72,203.78,203.77,4.90749374]